bitfinex/quotes_SOLUSD_20241016
["timestamp","ask_amount","ask_price","bid_price","bid_amount"]
[1729081759598,30.179084,156.2,156.15,6.404]
[1729081760477,6.4025,156.19,156.15,6.404]
[1729081760794,6.4025,156.19,156.14,16.0105]
[1729081760997,6.4025,156.19,156.14,22.4148]
[1729081762590,23.776884,156.2,156.14,16.0105]
[1729081762785,6.4029,156.18,156.14,22.4149]
[1729081762988,30.179284,156.2,156.15,6.404]
[1729081764594,30.178884,156.2,156.16,6.4035]
[1729081764905,23.776884,156.2,156.14,16.0105]
[1729081765097,6.4024,156.19,156.15,6.404]
[1729081765687,28.0987474,156.23,156.15,6.404]
[1729081766005,6.4028,156.19,156.14,22.4147]
[1729081766502,6.4028,156.19,156.14,16.0105]
[1729081766695,6.4028,156.19,156.15,6.404]
[1729081767296,23.776884,156.21,156.14,16.0105]
[1729081767502,6.4022,156.2,156.15,6.4039]
[1729081769912,6.4022,156.2,156.14,16.0105]
[1729081770124,23.776884,156.21,156.12,12.63581662]
[1729081770125,26.4015,156.22,156.18,6.4028]
[1729081770289,12.0958474,156.23,156.18,6.4028]
[1729081770484,12.0958474,156.23,156.14,44.65811662]
[1729081770485,18.4967474,156.23,156.14,44.65811662]
[1729081770793,12.0958474,156.23,156.2,6.4019]
[1729081771313,6.4,156.25,156.14,32.0223]
[1729081771503,6.4,156.25,156.21,6.4016]
[1729081772185,0.6493603,156.29,156.22,16.0026]
[1729081772387,0.6493603,156.29,156.23,12.63581662]
[1729081773510,0.6493603,156.29,156.25,22.3996]
[1729081773728,0.6493603,156.29,156.25,15.9997]
[1729081774487,0.6493603,156.29,156.23,6.4005]
[1729081774488,6.3988,156.28,156.23,6.4005]
[1729081780487,59.774884,156.27,156.18,16.0063]
[1729081780820,59.774884,156.27,156.17,24.47603825]
[1729081780821,6.4016,156.21,156.17,16.4419]
[1729081780992,6.4016,156.21,156.17,22.845]
[1729081782896,6.4016,156.21,156.17,6.4031]
[1729081783115,6.4005,156.24,156.2,6.4018]
[1729081783302,20.0,156.27,156.23,6.4007]
[1729081783493,22.8981,156.28,156.22,16.003]
[1729081783717,6.3991,156.28,156.24,6.4003]
[1729081784418,7.0477603,156.29,156.25,6.3999]
[1729081786610,0.6493603,156.29,156.25,6.3999]
[1729081787817,6.3988,156.28,156.24,22.4007]
[1729081788308,0.6493603,156.29,156.26,6.3993]
[1729081792208,0.6493603,156.29,156.21,16.627]
[1729081792409,0.6493603,156.29,156.27,6.3988]
[1729081794028,0.6493603,156.29,156.23,16.0017]
[1729081794229,6.3988,156.28,156.24,6.4002]
[1729081794422,6.3988,156.28,156.23,22.4024]
[1729081795108,6.3995,156.27,156.23,22.4024]
[1729081796640,0.6493603,156.29,156.24,6.4003]
[1729081796821,6.399,156.28,156.24,6.4003]
[1729081797028,6.399,156.28,156.23,22.4024]
[1729081797342,6.399,156.28,156.23,22.4023]
[1729081799851,7.0476603,156.29,156.25,6.3997]
[1729081800031,0.6493603,156.29,156.25,15.9994]
[1729081800239,0.6493603,156.29,156.28,6.3987]
[1729081802747,0.6493603,156.29,156.27,15.9974]
[1729081803045,0.6493603,156.29,156.24,16.0006]
[1729081803734,0.6493603,156.29,156.26,6.3993]
[1729081804119,0.6493603,156.29,156.24,16.0006]
[1729081804519,7.0477603,156.29,156.25,6.3998]
[1729081804718,0.6493603,156.29,156.24,16.0006]
[1729081805124,7.0477603,156.29,156.24,22.4006]
[1729081806036,6.3989,156.28,156.24,22.4006]
[1729081807443,0.6493603,156.29,156.22,6.4012]
[1729081807444,6.3995,156.26,156.22,6.4012]
[1729081807629,0.6493603,156.29,156.22,6.4012]
[1729081807630,6.3992,156.27,156.22,6.4012]
[1729081807830,0.6493603,156.29,156.21,16.0034]
[1729081808039,6.3998,156.26,156.21,22.4049]
[1729081808230,6.3998,156.26,156.22,6.4011]
[1729081809452,23.776884,156.25,156.18,16.0067]
[1729081809621,40.412784,156.23,156.14,32.0209]
[1729081809824,6.4025,156.19,156.15,16.0096]
[1729081811548,39.780584,156.22,156.11,16.0136]
[1729081811733,6.4037,156.16,156.11,22.4193]
[1729081811939,6.4041,156.15,156.1,6.406]
[1729081812137,6.4041,156.15,156.11,6.4056]
[1729081815352,6.4033,156.17,156.12,6.4049]
[1729081815527,6.4033,156.17,156.11,16.014]
[1729081815733,12.7213,156.18,156.13,6.4049]
[1729081815939,6.402,156.2,156.15,6.404]
[1729081819360,6.6343,156.22,156.13,6.4046]
[1729081819572,6.6343,156.22,156.11,22.4194]
[1729081819573,6.4037,156.16,156.11,22.4194]
[1729081822040,20.0,156.19,156.13,6.4048]
[1729081822867,6.4031,156.18,156.13,6.4048]
[1729081826570,20.0,156.19,156.13,6.4048]
[1729081826874,6.4033,156.17,156.13,6.4048]
[1729081828074,6.4039,156.16,156.11,22.4194]
[1729081828672,6.4044,156.15,156.11,16.0138]
[1729081828985,6.4044,156.15,156.08,16.017]
[1729081828986,6.4053,156.12,156.08,16.017]
[1729081829163,6.4053,156.12,156.07,6.4072]
[1729081829164,6.4061,156.11,156.06,6.4076]
[1729081829871,39.787584,156.15,156.06,6.4077]
[1729081829872,6.4061,156.1,156.06,6.4077]
[1729081830786,16.0135,156.12,156.01,16.4247]
[1729081831085,6.4076,156.07,156.01,16.0245]
[1729081831257,6.407,156.08,156.03,6.4086]
[1729081833467,6.407,156.08,155.98,6.3977]
[1729081833468,26.4064,156.1,156.05,6.408]
[1729081833700,6.6339,156.11,156.02,23.776884]
[1729081833984,6.4046,156.14,156.03,19.70407067]
[1729081834163,6.4046,156.14,156.1,6.406]
[1729081834563,6.4618,156.15,156.1,6.406]
[1729081834766,11.366,156.15,156.1,6.406]
[1729081835571,11.366,156.15,156.08,16.0165]
[1729081835572,4.9618,156.15,156.08,16.0165]
[1729081835900,6.4046,156.14,156.09,6.4064]
[1729081836110,23.776884,156.14,156.05,16.02]
[1729081836390,6.4054,156.12,156.07,6.407]
[1729081839566,6.4059,156.11,156.06,6.4076]
[1729081840171,31.3662,156.15,156.05,55.817284]
[1729081840377,6.404,156.16,156.11,6.4056]
[1729081840694,6.4041,156.15,156.11,6.4056]
[1729081840895,6.4032,156.18,156.11,16.0134]
[1729081841196,6.4024,156.19,156.14,6.4043]
[1729081841689,6.4029,156.18,156.14,6.4043]
[1729081841867,6.4029,156.18,156.13,16.0117]
[1729081841868,21.5975,156.2,156.15,6.404]
[1729081842068,21.5975,156.2,156.1,23.776884]
[1729081842271,6.4025,156.19,156.14,6.4044]
[1729081842491,21.5975,156.2,156.09,32.0325]
[1729081842492,6.4028,156.18,156.13,22.4164]
[1729081842692,21.5975,156.2,156.13,16.0119]
[1729081842869,6.4041,156.15,156.11,6.4053]
[1729081843698,21.5975,156.2,156.11,6.4053]
[1729081843699,6.4037,156.16,156.11,6.4053]
[1729081845986,6.4041,156.15,156.11,6.4053]
[1729081846892,23.776884,156.19,156.11,6.4053]
[1729081847108,6.4037,156.16,156.11,6.4053]
[1729081848487,6.4045,156.14,156.1,22.4213]
[1729081849404,20.0,156.18,156.05,55.817284]
[1729081849405,23.776884,156.17,156.05,55.817284]
[1729081849577,6.4049,156.13,156.09,6.4064]
[1729081854700,23.776884,156.17,156.08,6.4069]
[1729081855006,6.4058,156.11,156.07,16.0179]
[1729081855189,6.4058,156.11,156.07,22.4252]
[1729081855396,6.4062,156.1,156.06,6.4077]
[1729081856487,6.4062,156.1,156.04,32.3009]
[1729081856488,6.4062,156.1,156.05,6.4081]
[1729081856682,6.407,156.08,156.04,16.0208]
[1729081857508,6.4064,156.1,156.05,6.4079]
[1729081857885,43.776884,156.11,156.05,6.4079]
[1729081858103,6.4065,156.09,156.05,6.4079]
[1729081861199,22.8061,156.13,156.04,16.0208]
[1729081861200,6.4062,156.1,156.04,16.0208]
[1729081861516,6.4059,156.11,156.07,6.4072]
[1729081863521,29.211,156.13,156.08,6.4065]
[1729081864024,6.4054,156.12,156.08,6.4065]
[1729081867207,22.8061,156.13,156.06,16.0191]
[1729081867410,6.4059,156.11,156.07,6.4071]
[1729081869219,6.4061,156.1,156.06,16.0191]
[1729081869418,22.8061,156.13,156.01,6.4095]
[1729081869419,6.4081,156.06,156.01,6.4095]
[1729081870012,6.4081,156.06,156.0,16.0254]
[1729081870218,6.4074,156.07,156.03,6.4089]
[1729081870429,16.0147,156.11,156.0,16.0254]
[1729081870602,6.4077,156.06,156.02,6.4094]
[1729081871312,6.4085,156.05,156.0,22.4356]
[1729081873120,6.4636,156.07,156.0,16.0254]
[1729081873121,6.4089,156.04,156.0,16.0254]
[1729081874104,6.409,156.03,156.0,16.0254]
[1729081874418,6.4095,156.02,155.97,6.411]
[1729081874609,6.4099,156.01,155.97,6.411]
[1729081875017,6.4089,156.04,155.95,16.0814]
[1729081875205,6.4089,156.04,155.98,16.0271]
[1729081875409,26.4082,156.05,156.0,6.4101]
[1729081875702,6.4086,156.04,156.0,6.4101]
[1729081881543,16.0202,156.06,155.97,12.62875633]
[1729081881754,6.4636,156.07,156.02,16.023]
[1729081881928,6.4065,156.09,156.02,16.023]
[1729081882121,15.8006,156.1,156.01,12.62875633]
[1729081882439,15.8006,156.1,156.05,16.0203]
[1729081882440,6.4062,156.1,156.05,16.0203]
[1729081882616,6.4062,156.1,156.05,22.4284]
[1729081882822,12.6486,156.11,156.06,6.4074]
[1729081883031,12.6486,156.11,156.07,6.4072]
[1729081883520,12.6486,156.11,156.05,16.0203]
[1729081883521,12.6486,156.11,156.06,6.4077]
[1729081884145,6.2429,156.11,156.06,6.4077]
[1729081884444,6.4061,156.1,156.06,6.4077]
[1729081885932,23.34454192,156.14,156.07,16.0178]
[1729081886130,16.67516427,156.14,156.07,16.0178]
[1729081886642,6.405,156.13,156.08,6.4066]
[1729081887145,6.6723829,156.16,156.07,19.71242158]
[1729081887353,16.2692,156.18,156.14,6.4044]
[1729081887526,6.4025,156.19,156.15,6.404]
[1729081887721,12.7453,156.2,156.15,6.404]
[1729081888154,6.4025,156.19,156.15,6.404]
[1729081888321,6.4025,156.19,156.14,22.4155]
[1729081888520,6.3432,156.2,156.11,16.0139]
[1729081888722,6.4044,156.15,156.11,16.0139]
[1729081889139,22.4488,156.2,156.08,6.4066]
[1729081889140,6.4048,156.14,156.08,6.4066]
[1729081889455,6.4048,156.14,156.09,6.4064]
[1729081889630,0.2,156.19,156.07,16.0177]
[1729081889631,6.4049,156.13,156.08,6.4068]
[1729081890145,6.4049,156.13,156.07,22.4249]
[1729081890146,6.4056,156.12,156.07,22.4249]
[1729081890328,6.406,156.11,156.07,16.0177]
[1729081894221,6.4061,156.1,156.07,16.0177]
[1729081895752,6.4058,156.11,156.07,22.425]
[1729081896128,6.4058,156.11,156.07,16.0177]
[1729081896555,22.1079,156.15,156.09,16.0156]
[1729081896754,22.1079,156.15,156.1,6.4058]
[1729081896755,6.4041,156.15,156.1,6.4058]
[1729081896953,6.0287,156.17,156.11,16.0133]
[1729081896954,12.4321,156.17,156.11,16.0133]
[1729081897255,6.0287,156.17,156.07,16.0174]
[1729081897441,6.4049,156.13,156.08,6.4069]
[1729081898153,6.0287,156.17,156.06,6.4074]
[1729081898154,6.4063,156.1,156.06,6.4074]
[1729081898339,23.776884,156.14,156.06,6.4074]
[1729081898340,6.4058,156.11,156.06,6.4074]
[1729081899555,20.0,156.16,156.04,16.2056]
[1729081899935,6.4048,156.14,156.09,6.4062]
[1729081900137,20.0,156.16,156.1,16.0145]
[1729081900138,26.404,156.16,156.1,16.0145]
[1729081900351,26.404,156.16,156.12,6.4052]
[1729081900734,6.4043,156.15,156.1,22.4205]
[1729081900935,6.4043,156.15,156.1,22.4202]
[1729081900936,6.4041,156.15,156.1,22.4202]
[1729081901165,6.4041,156.15,156.1,16.0145]
[1729081901660,26.4037,156.16,156.11,6.4056]
[1729081902847,6.4041,156.15,156.11,6.4056]
[1729081903236,6.4037,156.16,156.11,6.4056]
[1729081904634,6.0287,156.17,156.11,6.4056]
[1729081904840,6.4041,156.15,156.11,6.4056]
[1729081905034,6.0287,156.17,156.1,16.0145]
[1729081905234,6.0287,156.17,156.12,6.4052]
[1729081905235,6.4037,156.16,156.12,6.4052]
[1729081905464,6.4037,156.16,156.1,16.0145]
[1729081905655,6.4037,156.16,156.11,6.4056]
[1729081906052,6.0287,156.17,156.1,16.0145]
[1729081906254,6.4021,156.2,156.15,6.4037]
[1729081906554,12.4867,156.21,156.16,6.4033]
[1729081907645,6.402,156.2,156.16,6.4033]
[1729081911769,6.0851,156.21,156.14,16.0105]
[1729081912063,6.4026,156.19,156.14,22.4149]
[1729081914371,6.4029,156.18,156.14,22.4149]
[1729081915246,6.4022,156.2,156.16,6.4036]
[1729081918752,6.4029,156.18,156.14,16.0105]
[1729081918953,6.4035,156.17,156.13,6.4045]
[1729081920460,43.876884,156.2,156.11,16.0138]
[1729081920767,43.876884,156.2,156.07,15.8411]
[1729081920768,6.4057,156.11,156.07,16.0178]
[1729081921165,6.4054,156.12,156.07,22.4248]
[1729081921566,6.4054,156.12,156.08,6.4067]
[1729081922796,6.4058,156.11,156.07,22.425]
[1729081923192,6.4049,156.13,156.08,6.4069]
[1729081924188,6.4061,156.11,156.07,16.0178]
[1729081924496,23.776884,156.12,156.05,6.4079]
[1729081924497,6.4064,156.1,156.05,6.4079]
[1729081926089,6.4064,156.1,156.06,6.4076]
[1729081926296,30.181984,156.13,156.08,6.4068]
[1729081926472,30.181984,156.13,156.09,6.4064]
[1729081927078,30.181984,156.13,156.08,16.0169]
[1729081927276,30.181984,156.13,156.08,22.4237]
[1729081927976,23.776884,156.13,156.08,16.0169]
[1729081928167,30.182084,156.13,156.08,22.4237]
[1729081929191,6.378,156.14,156.08,16.0169]
[1729081929364,6.4045,156.14,156.1,6.4057]
[1729081930775,6.4045,156.14,156.09,6.4064]
[1729081931091,16.3893,156.16,156.09,6.4064]
[1729081931296,16.3893,156.16,156.07,6.4073]
[1729081931297,6.4059,156.11,156.07,6.4073]
[1729081931494,23.776884,156.13,156.07,6.4073]
[1729081931701,6.4054,156.12,156.07,6.4073]
[1729081932768,6.4057,156.11,156.07,6.4073]
[1729081936402,6.4062,156.1,156.06,6.4077]
[1729081936695,23.776884,156.13,156.06,6.4077]
[1729081936876,6.4058,156.11,156.06,6.4077]
[1729081937899,6.4058,156.11,156.05,16.0204]
[1729081938197,6.4058,156.11,156.07,6.4073]
[1729081940777,6.4058,156.11,156.06,6.4076]
[1729081944480,6.4058,156.11,156.07,6.4073]
[1729081946302,21.11397777,156.15,156.05,12.61684406]
[1729081946480,26.4042,156.15,156.06,32.0387]
[1729081946803,6.4045,156.14,156.09,22.4222]
[1729081947309,6.407,156.08,156.03,6.4089]
[1729081947475,20.0,156.13,156.03,16.0219]
[1729081947476,6.4076,156.07,156.03,16.0219]
[1729081947805,6.4078,156.06,156.01,6.4097]
[1729081948803,6.4078,156.06,156.02,6.4093]
[1729081949510,43.776884,156.07,155.96,16.029]
[1729081949812,16.6502,156.06,155.96,16.029]
[1729081949992,6.4098,156.01,155.96,16.029]
[1729081950196,6.4094,156.02,155.97,6.4114]
[1729081950507,6.4094,156.02,155.98,6.411]
[1729081950684,6.409,156.03,155.98,6.411]
[1729081950899,43.776884,156.05,155.99,16.0263]
[1729081951100,23.776884,156.05,155.99,16.0263]
[1729081951317,23.058,156.06,156.02,6.4094]
[1729081951498,20.0,156.07,156.03,6.4089]
[1729081951827,20.0,156.07,156.01,16.0237]
[1729081952115,20.0,156.07,156.0,6.41]
[1729081952305,6.4086,156.04,156.0,6.41]
[1729081953502,23.776884,156.03,155.98,16.0274]
[1729081953695,6.4077,156.06,156.01,6.4097]
[1729081954092,20.0,156.07,156.01,6.4097]
[1729081954303,6.4082,156.05,156.01,6.4097]
[1729081955897,6.4068,156.09,156.04,6.4082]
[1729081956097,6.407,156.08,156.04,6.4082]
[1729081956307,6.407,156.08,155.99,32.053]
[1729081956308,6.4079,156.06,156.01,6.4097]
[1729081957515,6.4083,156.05,156.0,22.4355]
[1729081958216,6.4089,156.04,156.0,16.0254]
[1729081958416,6.24,156.05,155.97,16.0283]
[1729081958629,6.24,156.05,155.95,15.6214]
[1729081958630,6.4102,156.0,155.96,6.4118]
[1729081959007,6.4099,156.01,155.96,6.4118]
[1729081959424,6.4099,156.01,155.97,6.4113]
[1729081963210,23.776884,155.98,155.95,3.50096032]
[1729081963411,23.776884,155.98,155.94,22.4441]
[1729081965233,23.776884,155.98,155.95,3.50321167]
[1729081966742,23.776884,155.99,155.95,9.91464163]
[1729081968520,23.776884,155.99,155.95,6.4123]
[1729081969045,6.1003,155.98,155.94,16.0314]
[1729081969341,23.776884,155.97,155.94,22.4441]
[1729081972345,6.1003,155.98,155.95,6.4121]
[1729081973621,43.776884,155.99,155.96,6.4118]
[1729081973823,6.0092,156.02,156.01,6.4098]
[1729081974350,6.0092,156.02,156.0,6.4102]
[1729081974925,6.0092,156.02,155.99,6.4105]
[1729081975119,6.0092,156.02,155.98,16.0271]
[1729081975316,6.0092,156.02,156.0,6.4102]
[1729081975922,6.0092,156.02,155.99,6.4105]
[1729081977724,20.0,156.05,155.94,35.5487]
[1729081977936,20.0,156.05,156.02,6.4093]
[1729081978245,20.0,156.05,156.01,6.4097]
[1729081978455,23.776884,156.05,156.01,6.4097]
[1729081979842,30.185184,156.05,156.01,6.4097]
[1729081980041,30.185184,156.05,156.0,22.4352]
[1729081980446,6.4088,156.04,156.0,16.0251]
[1729081980740,23.776884,156.05,156.0,22.4352]
[1729081980944,30.185084,156.05,156.0,22.4352]
[1729081981953,6.4099,156.01,155.97,16.0286]
[1729081982833,0.1,156.04,155.94,16.0313]
[1729081983032,12.691,155.99,155.94,16.0313]
[1729081983241,12.691,155.99,155.96,6.4118]
[1729081983242,6.2804,155.99,155.96,6.4118]
[1729081983656,6.2804,155.99,155.95,6.4122]
[1729081985558,12.6911,155.99,155.95,6.4122]
[1729081985948,6.2804,155.99,155.91,20.0]
[1729081986254,43.776884,156.01,155.97,6.4111]
[1729081986424,50.186784,156.01,155.97,6.4111]
[1729081990252,50.186784,156.01,155.96,16.029]
[1729081990558,43.776884,156.01,155.97,6.4114]
[1729081991053,12.608,156.03,155.98,6.4109]
[1729081991265,6.1989,156.03,155.92,51.8163893]
[1729081991558,6.1989,156.03,155.99,6.4104]
[1729081991955,6.1989,156.03,155.99,6.4106]
[1729081992155,22.7901,156.04,155.98,16.027]
[1729081992344,6.4087,156.04,155.98,16.027]
[1729081993467,6.4087,156.04,156.0,6.4101]
[1729081993637,6.4098,156.01,155.98,16.027]
[1729081994165,6.4098,156.01,155.97,6.4112]
[1729081994482,6.4098,156.01,155.92,47.3263]
[1729081994483,6.0696,156.02,155.92,15.2594]
[1729081994764,6.0696,156.02,155.92,16.0333]
[1729081995072,6.4107,155.99,155.94,6.4124]
[1729081995363,43.776884,155.99,155.95,6.4122]
[1729081995573,6.4109,155.99,155.94,22.4434]
[1729081995867,6.411,155.98,155.94,22.4434]
[1729081996845,6.411,155.98,155.94,16.0308]
[1729081997050,6.4116,155.97,155.92,6.4134]
[1729081999169,6.4107,155.99,155.94,6.4124]
[1729081999685,6.4107,155.99,155.95,6.4123]
[1729081999973,26.4102,156.01,155.96,6.4115]
[1729082000552,6.4102,156.01,155.96,6.4115]
[1729082002989,1.31481212,156.07,155.92,32.0672]
[1729082002990,20.0,156.05,155.93,36.2257]
[1729082003152,12.8595,156.06,156.01,6.4097]
[1729082005760,23.776884,156.05,155.99,16.0263]
[1729082005951,6.4094,156.03,155.99,16.0263]
[1729082007275,6.4098,156.01,155.97,6.4113]
[1729082007773,6.4098,156.01,155.96,22.4411]
[1729082009177,6.4098,156.01,155.97,6.4114]
[1729082022183,6.4106,155.99,155.96,16.0293]
[1729082022496,0.1,156.04,155.93,16.0326]
[1729082022667,6.4117,155.97,155.93,22.4457]
[1729082023598,6.4117,155.97,155.93,16.0326]
[1729082023770,6.4126,155.95,155.9,22.4494]
[1729082024486,22.76740429,155.99,155.9,22.4494]
[1729082024670,43.776884,155.98,155.91,6.4139]
[1729082024990,43.776884,155.98,155.93,6.413]
[1729082025167,6.64030429,155.99,155.92,32.0671]
[1729082025370,6.4099,156.01,155.92,32.0671]
[1729082025667,6.4099,156.01,155.96,6.4118]
[1729082025861,6.4099,156.01,155.97,6.4114]
[1729082026066,12.72223312,156.04,155.95,19.75871173]
[1729082026285,6.4078,156.06,155.96,52.0588]
[1729082026893,15.5598,156.07,155.99,16.0262]
[1729082027188,6.4082,156.05,156.0,6.4102]
[1729082028192,6.3625,156.08,155.99,16.0262]
[1729082028193,12.7694,156.08,156.03,6.4089]
[1729082028380,12.7694,156.08,156.01,16.0237]
[1729082028381,23.00909412,156.11,156.01,16.0237]
[1729082028569,6.4066,156.09,156.04,6.4086]
[1729082028984,6.4069,156.08,156.03,6.4089]
[1729082029974,6.4066,156.09,156.04,6.4084]
[1729082030685,22.7806,156.11,156.06,6.4077]
[1729082031193,13.04558411,156.13,156.08,6.4068]
[1729082031400,6.4052,156.13,156.08,6.4068]
[1729082033087,6.4052,156.13,156.05,16.0198]
[1729082033088,16.4656,156.15,156.05,16.0198]
[1729082033291,43.776884,156.14,156.05,16.0198]
[1729082034396,43.776884,156.14,156.08,16.0173]
[1729082034397,6.4053,156.12,156.08,16.0173]
[1729082035297,6.4053,156.12,156.07,6.4072]
[1729082035298,32.4765,156.15,156.05,32.1333]
[1729082035482,23.776884,156.14,156.01,16.1016]
[1729082035802,6.4072,156.08,156.03,6.4089]
[1729082035976,60.311084,156.08,155.97,15.2699]
[1729082036179,60.311084,156.08,155.98,16.027]
[1729082036703,6.4095,156.02,155.98,16.027]
[1729082037271,6.4095,156.02,155.98,22.438]
[1729082037476,6.4094,156.02,155.98,22.438]
[1729082038089,6.4098,156.01,155.98,20.0]
[1729082038578,6.4103,156.0,155.95,22.4425]
[1729082038798,6.4108,155.99,155.93,22.0025]
[1729082039483,6.4108,155.99,155.94,6.4125]
[1729082040587,6.4103,156.0,155.95,6.4122]
[1729082040911,6.5677,156.05,155.94,39.75871173]
[1729082041206,23.776884,156.04,155.94,39.75871173]
[1729082041503,30.185884,156.04,155.99,6.4106]
[1729082041709,6.409,156.03,155.99,6.4106]
[1729082041908,6.409,156.03,155.98,6.4109]
[1729082045209,23.776884,156.04,155.93,15.5897]
[1729082045210,6.4105,156.0,155.95,6.4121]
[1729082045384,6.4108,155.99,155.94,6.4123]
[1729082045705,6.4108,155.99,155.95,6.4122]
[1729082046206,6.4108,155.99,155.93,31.6216]
[1729082046207,6.4112,155.98,155.94,6.4126]
[1729082046507,23.776884,156.02,155.95,16.0301]
[1729082046814,23.776884,156.02,155.97,6.4114]
[1729082046986,6.4105,156.0,155.95,22.4424]
[1729082047185,23.776884,156.02,155.95,16.0301]
[1729082047392,6.4109,155.99,155.95,22.4423]
[1729082048613,23.776884,156.02,155.95,16.0301]
[1729082050493,6.4107,155.99,155.95,22.4423]
[1729082051190,6.4103,156.0,155.96,6.4118]
[1729082051586,6.409,156.03,155.99,6.4105]
[1729082051789,20.0,156.04,155.97,16.0279]
[1729082052311,6.4097,156.02,155.97,22.439]
[1729082052821,6.4097,156.02,155.98,6.411]
[1729082053986,6.4091,156.03,155.98,6.411]
[1729082054717,22.993,156.05,155.97,16.0279]
[1729082054897,6.4086,156.04,156.0,6.4102]
[1729082055095,6.4086,156.04,155.97,16.0279]
[1729082055309,6.409,156.03,155.99,6.4106]
[1729082055512,6.4087,156.04,155.99,6.4106]
[1729082056112,6.4087,156.04,156.0,6.41]
[1729082056620,6.4087,156.04,155.99,16.0261]
[1729082056621,12.9759,156.05,155.99,16.0261]
[1729082056921,12.9759,156.05,156.01,6.4097]
[1729082057129,22.05025122,156.09,155.99,16.0261]
[1729082057130,6.4077,156.07,156.02,6.4094]
[1729082057302,28.2529,156.09,156.02,16.0233]
[1729082058019,6.4069,156.08,156.04,6.4084]
[1729082059024,21.8461,156.09,156.04,6.4084]
[1729082059221,12.8511,156.09,156.04,6.4084]
[1729082059827,6.407,156.08,156.04,6.4084]
[1729082061334,6.4445,156.09,156.02,16.0233]
[1729082061631,6.4445,156.09,156.03,6.4087]
[1729082062222,12.8511,156.09,156.04,6.4083]
[1729082062621,12.8511,156.09,156.05,6.4081]
[1729082062844,12.8511,156.09,156.02,16.0233]
[1729082063027,12.8511,156.09,156.04,6.4084]
[1729082063622,6.407,156.08,156.04,6.4084]
[1729082064412,6.4445,156.09,156.01,6.4095]
[1729082064646,6.4078,156.06,156.01,6.4095]
[1729082064812,6.4078,156.06,156.02,6.4093]
[1729082067023,6.4075,156.07,156.02,6.4093]
[1729082069240,6.4075,156.07,156.03,6.4089]
[1729082070217,6.4078,156.06,156.02,6.4093]
[1729082070417,6.4084,156.05,156.01,22.4339]
[1729082072429,6.4084,156.05,156.01,16.0242]
[1729082072945,15.3878,156.06,155.98,6.4109]
[1729082073153,6.4097,156.02,155.98,6.4109]
[1729082073325,6.4091,156.03,155.98,6.4109]
[1729082073642,23.776884,156.05,155.98,6.4109]
[1729082073643,6.4095,156.02,155.98,6.4109]
[1729082074755,6.4091,156.03,155.98,6.4109]
[1729082077150,20.0,156.08,155.96,39.75871173]
[1729082077437,6.4445,156.09,155.96,39.75871173]
[1729082078534,6.408,156.06,156.02,6.4093]
[1729082079443,6.4077,156.07,156.02,6.4093]
[1729082079840,6.408,156.06,156.01,16.0242]
[1729082080145,6.408,156.06,156.01,22.434]
[1729082080346,6.4082,156.05,156.01,22.434]
[1729082080647,6.4087,156.04,156.0,6.4102]
[1729082082039,6.4082,156.05,156.01,26.4097]
[1729082082268,6.4082,156.05,156.01,6.4097]
[1729082086940,6.4082,156.05,156.01,20.0]
[1729082087134,6.4082,156.05,156.01,26.4098]
[1729082089843,23.776884,156.08,156.01,20.0]